[Event "Norwegian Team Championship 2019"]
[Site "Drammen"]
[Date "2019.06.02"]
[Round "6.20"]
[White "Juriloo, Karl"]
[Black "Rukovci, Shemsi"]
[Result "1/2-1/2"]
[ECO "C42"]
[WhiteElo "1978"]
[BlackElo "1914"]
[Annotator "NA"]
[PlyCount "93"]
[EventDate "2019.05.30"]
[EventType "swiss"]
[EventCountry "NOR"]
[SourceTitle "playchess.com"]
[Source "ChessBase"]
[SourceQuality "1"]
[TimeControl "40/5400:1800"]

1. e4 {[%emt 0:00:02]} e5 {[%emt 0:01:29]} 2. Nf3 {[%emt 0:03:54]} Nf6 {[%emt 0:00:28]} 3. Nxe5 {[%emt 0:00:43]} d6 {[%emt 0:00:19]} 4. Nf3 {[%emt 0:00:08]} Nxe4 {[%emt 0:00:09]} 5. Nc3 {[%emt 0:00:07]} Nf6 {[%emt 0:00:43]} 6. d4 {[%emt 0:01:46]} d5 {[%emt 0:00:33] C42: Petroff Defence: 3 Nxe5 and unusual White 3rd moves} 7. Bd3 {[%emt 0:00:26]} Bd6 {[%emt 0:03:23]} 8. Qe2+ $146 {[%emt 0:00:14]} ({Predecessor:} 8. O-O O-O 9. h3 h6 10. Re1 c6 11. Ne2 Re8 12. Ng3 Rxe1+ {½-½ (12) Gashimov,V (2758)-Mamedyarov,S (2719) Moscow 2009}) 8... Qe7 {[%emt 0:00:35]} 9. Qxe7+ {[%emt 0:00:03]} Bxe7 {[%emt 0:01:10]} 10. Nb5 {[%emt 0:00:48]} Na6 {[%emt 0:01:13]} 11. Bf4 {[%emt 0:00:09]} c6 {[%emt 0:06:29]} 12. Nd6+ {[%emt 0:00:39]} Bxd6 {[%emt 0:00:53]} 13. Bxd6 {[%emt 0:00:04]} Ne4 {[%emt 0:01:01]} 14. Bxe4 {[%emt 0:05:44]} dxe4 {[%emt 0:00:07]} 15. Nd2 {[%emt 0:04:59]} Bf5 {[%emt 0:06:09]} 16. O-O-O {[%emt 0:01:25]} O-O-O {[%emt 0:00:13]} 17. Bf4 {[%emt 0:05:12]} Rxd4 {[%emt 0:07:27]} 18. Be5 {[%emt 0:02:10]} Rd5 {[%emt 0:01:52]} 19. Nc4 {[%emt 0:02:43]} Kd7 {[%emt 0:04:21]} 20. Ne3 {[%emt 0:10:37]} Rxd1+ {[%emt 0:05:13]} 21. Rxd1+ {[%emt 0:00:07]} Ke6 $16 {[%emt 0:00:34]} 22. Bf4 {[%emt 0:10:46]} Bg6 {[%emt 0:02:33]} 23. g4 {[%emt 0:00:46]} Ke7 {[%emt 0:09:47]} 24. h4 {[%emt 0:05:00]} h5 {[%emt 0:00:55]} 25. gxh5 {[%emt 0:04:15]} Rxh5 {[%emt 0:02:47]} 26. b4 {[%emt 0:02:28]} f6 {[%emt 0:04:29]} 27. a3 {[%emt 0:00:36]} Rxh4 {[%emt 0:00:33]} 28. Bd6+ {[%emt 0:01:43]} Ke6 {[%emt 0:02:34]} 29. Bg3 {[%emt 0:03:10]} Rh3 {[%emt 0:00:59]} 30. Rd8 {[%emt 0:01:13]} Bf7 {[%emt 0:03:45]} 31. Rd6+ {[%emt 0:00:45]} Ke7 {[%emt 0:00:01]} 32. Nf5+ {[%emt 0:00:16]} Ke8 {[%emt 0:05:51]} 33. Nxg7+ {[%emt 0:00:30]} Kf8 {[%emt 0:01:42]} 34. Nf5 {[%emt 0:00:09]} Nc7 {[%emt 0:01:09]} 35. Rxf6 {[%emt 0:04:16]} Ne8 {[%emt 0:00:01]} 36. Bd6+ {[%emt 0:01:16]} Nxd6 {[%emt 0:00:02]} 37. Nxd6 {[%emt 0:00:18]} Ke7 {[%emt 0:00:15]} 38. Nxe4 {[%emt 0:02:33]} Bd5 {[%emt 0:00:34]} 39. Rf4 {[%emt 0:00:49]} Rxa3 {[%emt 0:00:03]} 40. Nc5 {[%emt 0:00:42]} b6 {[%emt 0:01:05]} 41. Nd3 {[%emt 0:30:20]} a5 {[%emt 0:30:37]} 42. Kb2 {[%emt 0:00:00]} Ra2+ {[%emt 0:00:00]} 43. Kb1 {[%emt 0:00:00]} Ra3 {[%emt 0:00:00]} 44. bxa5 {[%emt 0:00:00]} Rxa5 {[%emt 0:00:00]} 45. c4 {[%emt 0:00:00]} Be6 {[%emt 0:00:00]} 46. Kb2 {[%emt 0:00:00]} Rf5 {[%emt 0:00:00]} 47. Re4 {[%emt 0:00:00]} 1/2-1/2